fUST/lending_fUST_20250120
["ID","MTS","AMOUNT","RATE_DAILY","PERIOD"]
[349610474,1737327042442,-151.0,0.00023287,7]
[349610476,1737327042453,-151.0,0.00023287,7]
[349610478,1737327042462,-151.0,0.00023287,7]
[349610480,1737327042472,-151.0,0.00023287,7]
[349610482,1737327042482,-151.0,0.00023287,7]
[349610484,1737327042492,-151.0,0.00023287,7]
[349610486,1737327042505,-151.0,0.00023287,7]
[349610489,1737327042514,-151.0,0.00023287,7]
[349610491,1737327042524,-151.0,0.00023287,7]
[349610493,1737327042533,-151.0,0.00023287,7]
[349610495,1737327042543,-220.198333,0.00023287,7]
[349610497,1737327042552,-151.0,0.00023287,7]
[349610499,1737327042561,-220.198333,0.00023287,7]
[349610501,1737327042571,-154.119608,0.00023287,7]
[349610503,1737327042581,-151.0,0.00023287,7]
[349610505,1737327042590,-151.0,0.00023287,7]
[349610506,1737327042600,-577.01,0.00023287,2]
[349610508,1737327042609,-151.0,0.00023287,7]
[349610510,1737327042618,-151.0,0.00023287,7]
[349610512,1737327042627,-151.0,0.00023287,7]
[349610515,1737327042637,-693.571163,0.00023287,7]
[349610517,1737327042646,-693.571163,0.00023287,7]
[349610518,1737327042655,-500.0,0.00023287,3]
[349610520,1737327042663,-151.0,0.00023287,7]
[349610523,1737327042673,-151.0,0.00023287,7]
[349610525,1737327042683,-151.0,0.00023287,7]
[349610526,1737327042691,-151.0,0.00023287,7]
[349610529,1737327042702,-151.0,0.00023287,7]
[349610531,1737327042711,-5053.81,0.00023287,3]
[349610533,1737327042720,-151.0,0.00023287,7]
[349610535,1737327042730,-220.570283,0.00023287,7]
[349610537,1737327042739,-151.0,0.00023287,7]
[349610538,1737327042748,-1065.17805372,0.00023287,3]
[349610541,1737327042760,-785.95194628,0.00023287,3]
[349610543,1737327042770,-151.0,0.00023287,7]
[349610545,1737327042779,-319.74055372,0.00023287,7]
[349610563,1737327042953,-500.0,0.00021917,3]
[349610564,1737327042962,-500.0,0.00021917,3]
[349610565,1737327042971,-500.0,0.00022054,3]
[349610566,1737327042981,-500.0,0.00022191,3]
[349610567,1737327042991,-500.0,0.00022328,3]
[349610568,1737327043001,-500.0,0.00022465,3]
[349610569,1737327043010,-417.14,0.00022602,3]
[349610570,1737327043020,-216.46131541,0.00023287,7]
[349610571,1737327043032,-125.90967287,0.00023287,7]
[349610573,1737327043043,-151.0,0.00023287,7]
[349610575,1737327043053,-662.111542,0.00023287,7]
[349610576,1737327043063,-448.453206,0.00023287,7]
[349610577,1737327043072,-639.33,0.00023287,3]
[349610579,1737327043082,-573.187483,0.00023287,7]
[349610582,1737327043091,-448.453206,0.00023287,7]
[349610584,1737327043100,-961.42,0.00023287,3]
[349610586,1737327043109,-573.187483,0.00023287,7]
[349610587,1737327043119,-663.9,0.00023287,3]
[349610588,1737327043129,-151.0,0.00023287,7]
[349610589,1737327043138,-151.0,0.00023287,7]
[349610590,1737327043147,-500.0,0.00023287,3]
[349610591,1737327043157,-6979.15,0.00023287,3]
[349610592,1737327043166,-3280.79,0.00023287,3]
[349610594,1737327043178,-500.0,0.00023287,3]
[349610596,1737327043188,-191.576322,0.00023287,7]
[349610598,1737327043198,-151.0,0.00023287,7]
[349610601,1737327043216,-191.576322,0.00023287,7]
[349610604,1737327043226,-500.0,0.00023287,3]
[349610606,1737327043235,-500.0,0.00023287,3]
[349610608,1737327043244,-916.81,0.00023287,3]
[349610609,1737327043253,-162.722344,0.00023287,7]
[349610611,1737327043267,-858.63,0.00023287,3]
[349610613,1737327043276,-162.722344,0.00023287,7]
[349610615,1737327043286,-1470.33,0.00023287,3]
[349610617,1737327043295,-500.0,0.00023287,3]
[349610619,1737327043306,-3062.46,0.00023287,3]
[349610620,1737327043316,-378.73,0.00023287,3]
[349610622,1737327043326,-953.42,0.00023287,3]
[349610624,1737327043335,-691.76,0.00023287,3]
[349610626,1737327043345,-2757.66,0.00023287,3]
[349610628,1737327043354,-159.776908,0.00023348,7]
[349610631,1737327043363,-151.0,0.00023348,7]
[349610634,1737327043373,-151.0,0.00023348,7]
[349610636,1737327043383,-151.0,0.00023348,7]
[349610638,1737327043392,-2040.2832518,0.00023348,3]
[349610641,1737327043403,-261.1421716,0.0002337,2]
[349610644,1737327043413,-154.0848427,0.0002337,2]
[349610646,1737327043423,-153.0,0.0002337,2]
[349610648,1737327043432,-179.1642997,0.0002337,2]
[349610650,1737327043441,-250.8754565,0.0002337,2]
[349610653,1737327043451,-154.0848427,0.0002337,2]
[349610656,1737327043462,-215.1283215,0.0002337,2]
[349610658,1737327043472,-153.0,0.0002337,2]
[349610662,1737327043483,-154.0848427,0.0002337,2]
[349610665,1737327043493,-153.0,0.0002337,2]
[349610668,1737327043506,-215.1283215,0.0002337,2]
[349610671,1737327043516,-153.0,0.0002337,2]
[349610674,1737327043528,-215.1283215,0.0002337,2]
[349610677,1737327043538,-154.0848427,0.0002337,2]
[349610680,1737327043550,-215.1283215,0.0002337,2]
[349610683,1737327043560,-154.0848427,0.0002337,2]
[349610686,1737327043569,-153.0,0.0002337,2]
[349610689,1737327043578,-154.0848427,0.0002337,2]
[349610692,1737327043588,-215.1283215,0.0002337,2]
[349610695,1737327043598,-153.0,0.0002337,2]
[349610698,1737327043607,-154.0848427,0.0002337,2]
[349610700,1737327043617,-215.1283215,0.0002337,2]
[349610703,1737327043626,-431.11727675,0.00023418,2]
[349610705,1737327043635,-151.0,0.00023424,7]
[349610707,1737327043644,-151.0,0.00023424,7]
[349610709,1737327043654,-577.01,0.00023424,2]
[349610711,1737327043663,-500.0,0.00023424,3]
[349610713,1737327043672,-5053.81,0.00023424,3]
[349610715,1737327043682,-1851.13,0.00023424,3]
[349610717,1737327043692,-639.33,0.00023424,3]
[349610719,1737327043702,-961.42,0.00023424,3]
[349610721,1737327043711,-663.9,0.00023424,3]
[349610723,1737327043736,-500.0,0.00023424,3]
[349610725,1737327043745,-6979.15,0.00023424,3]
[349610727,1737327043755,-3280.79,0.00023424,3]
[349610729,1737327043765,-374.7,0.00023424,3]
[349610731,1737327043776,-272.27,0.00023424,3]
[349610733,1737327043786,-500.0,0.00023424,3]
[349610735,1737327043796,-916.81,0.00023424,3]
[349610737,1737327043805,-858.63,0.00023424,3]
[349610739,1737327043815,-1470.33,0.00023424,3]
[349610741,1737327043825,-500.0,0.00023424,3]
[349610743,1737327043835,-3062.46,0.00023424,3]
[349610745,1737327043844,-953.42,0.00023424,3]
[349610747,1737327043854,-691.76,0.00023424,3]
[349610749,1737327043864,-2757.66,0.00023424,3]
[349610753,1737327043874,-2040.2832518,0.00023452,3]
[349610756,1737327043884,-619.53074028,0.000235,2]
[349610758,1737327043895,-9859.9785252,0.000235,2]
[349610761,1737327043910,-6837.20980469,0.000235,2]
[349610763,1737327043920,-2040.2832518,0.00023555,3]
[349610765,1737327043930,-577.01,0.00023561,2]
[349610767,1737327043940,-500.0,0.00023561,3]
[349610769,1737327043950,-5053.81,0.00023561,3]
[349610771,1737327043960,-1851.13,0.00023561,3]
[349610773,1737327043970,-639.33,0.00023561,3]
[349610775,1737327043980,-961.42,0.00023561,3]
[349610777,1737327043992,-663.9,0.00023561,3]
[349610779,1737327044003,-500.0,0.00023561,3]
[349610781,1737327044013,-6979.15,0.00023561,3]
[349610782,1737327044022,-3280.79,0.00023561,3]
[349610784,1737327044033,-500.0,0.00023561,3]
[349610785,1737327044044,-916.81,0.00023561,3]
[349610786,1737327044055,-858.63,0.00023561,3]
[349610788,1737327044066,-1470.33,0.00023561,3]
[349610790,1737327044075,-500.0,0.00023561,3]
[349610792,1737327044085,-73.91867741,0.00023561,3]
[349610794,1737327044097,-2988.54132259,0.00023561,3]
[349610795,1737327044108,-953.42,0.00023561,3]
[349610797,1737327044117,-691.76,0.00023561,3]
[349610799,1737327044127,-2757.66,0.00023561,3]
[349610801,1737327044137,-1201.20996512,0.00023622,2]
[349610803,1737327044147,-2040.2832518,0.00023659,3]
[349610805,1737327044157,-577.01,0.00023698,2]
[349610808,1737327044167,-500.0,0.00023698,3]
[349610810,1737327044177,-5053.81,0.00023698,3]
[349610812,1737327044187,-649.73041582,0.00023698,3]
[349610814,1737327044199,-1201.39958418,0.00023698,3]
[349610816,1737327044209,-639.33,0.00023698,3]
[349610818,1737327044236,-961.42,0.00023698,3]
[349610820,1737327044246,-663.9,0.00023698,3]
[349610822,1737327044256,-500.0,0.00023698,3]
[349610824,1737327044266,-6979.15,0.00023698,3]
[349610826,1737327044275,-3280.79,0.00023698,3]
[349610827,1737327044285,-318.67716789,0.00023698,3]
[349610829,1737327044294,-916.81,0.00023698,3]
[349610831,1737327044304,-858.63,0.00023698,3]
[349610833,1737327044314,-1470.33,0.00023698,3]
[349610835,1737327044324,-500.0,0.00023698,3]
[349610836,1737327044334,-3062.46,0.00023698,3]
[349610837,1737327044343,-953.42,0.00023698,3]
[349610839,1737327044354,-691.76,0.00023698,3]
[349610841,1737327044367,-2757.66,0.00023698,3]
[349610842,1737327044376,-151.0,0.000237,7]
[349610844,1737327044387,-431.11727675,0.00023759,2]
[349610846,1737327044396,-1200.0,0.00023762,2]
[349610848,1737327044406,-2040.2832518,0.00023762,3]
[349610850,1737327044415,-153.0,0.00023814,2]
[349610852,1737327044425,-152.0,0.00023814,2]
[349610853,1737327044435,-152.0,0.00023814,2]
[349610855,1737327044444,-152.0,0.00023814,2]
[349610857,1737327044454,-152.0,0.00023814,2]
[349610859,1737327044464,-152.0,0.00023814,2]
[349610861,1737327044474,-152.0,0.00023814,2]
[349610863,1737327044483,-152.0,0.00023814,2]
[349610864,1737327044492,-152.0,0.00023814,2]
[349610866,1737327044504,-152.0,0.00023814,2]
[349610868,1737327044514,-152.0,0.00023814,2]
[349610870,1737327044527,-152.0,0.00023814,2]
[349610872,1737327044537,-152.0,0.00023814,2]
[349610874,1737327044548,-152.0,0.00023814,2]
[349610875,1737327044558,-152.0,0.00023814,2]
[349610877,1737327044568,-152.0,0.00023814,2]
[349610879,1737327044578,-152.0,0.00023814,2]
[349610880,1737327044587,-152.0,0.00023814,2]
[349610881,1737327044598,-152.0,0.00023814,2]
[349610882,1737327044609,-152.0,0.00023814,2]
[349610883,1737327044620,-152.0,0.00023814,2]
[349610884,1737327044630,-268.0,0.00023814,2]
[349610885,1737327044640,-152.0,0.00023817,2]
[349610886,1737327044649,-152.0,0.00023817,2]
[349610887,1737327044659,-152.0,0.00023817,2]
[349610888,1737327044668,-152.0,0.00023817,2]
[349610890,1737327044678,-152.0,0.00023817,2]
[349610891,1737327044689,-203.53,0.00023817,2]
[349610893,1737327044699,-577.01,0.00023835,2]
[349610895,1737327044708,-500.0,0.00023835,3]
[349610897,1737327044731,-5053.81,0.00023835,3]
[349610899,1737327044740,-1851.13,0.00023835,3]
[349610901,1737327044750,-639.33,0.00023835,3]
[349610903,1737327044759,-961.42,0.00023835,3]
[349610905,1737327044770,-663.9,0.00023835,3]
[349610907,1737327044782,-500.0,0.00023835,3]
[349610909,1737327044791,-151.0,0.00023835,7]
[349610910,1737327044800,-6979.15,0.00023835,3]
[349610912,1737327044809,-3280.79,0.00023835,3]
[349610914,1737327044819,-916.81,0.00023835,3]
[349610916,1737327044828,-858.63,0.00023835,3]
[349610917,1737327044837,-1470.33,0.00023835,3]
[349610918,1737327044847,-500.0,0.00023835,3]
[349610919,1737327044857,-3062.46,0.00023835,3]
[349610920,1737327044866,-151.0,0.00023835,7]
[349610921,1737327044877,-257.623255,0.00023835,7]
[349610922,1737327044887,-793.996907,0.00023835,7]
[349610923,1737327044897,-438.173601,0.00023835,7]
[349610924,1737327044907,-257.623255,0.00023835,7]
[349610927,1737327044994,-438.173601,0.00023835,7]
[349610929,1737327045004,-793.996907,0.00023835,7]
[349610931,1737327045013,-953.42,0.00023835,3]
[349610932,1737327045023,-219.575856,0.00023835,7]
[349610934,1737327045032,-219.575856,0.00023835,7]
[349610936,1737327045041,-151.0,0.00023835,7]
[349610939,1737327045051,-691.76,0.00023835,3]
[349610940,1737327045061,-151.0,0.00023835,7]
[349610942,1737327045071,-151.0,0.00023835,7]
[349610944,1737327045081,-2757.66,0.00023835,3]
[349610946,1737327045091,-151.0,0.00023835,7]
[349610947,1737327045100,-2040.2832518,0.00023866,3]
[349610948,1737327045109,-4343.77,0.000239,14]
[349610949,1737327045118,-16666.58323429,0.00023939,2]
[349610950,1737327045127,-2040.2832518,0.00023969,3]
[349610951,1737327045137,-577.01,0.00023972,2]
[349610952,1737327045147,-500.0,0.00023972,3]
[349610953,1737327045156,-5053.81,0.00023972,3]
[349610954,1737327045166,-1851.13,0.00023972,3]
[349610955,1737327045175,-639.33,0.00023972,3]
[349610956,1737327045186,-961.42,0.00023972,3]
[349610957,1737327045196,-663.9,0.00023972,3]
[349610958,1737327045207,-500.0,0.00023972,3]
[349610959,1737327045223,-6979.15,0.00023972,3]
[349610960,1737327045239,-3280.79,0.00023972,3]
[349610961,1737327045250,-916.81,0.00023972,3]
[349610962,1737327045262,-858.63,0.00023972,3]
[349610963,1737327045273,-1470.33,0.00023972,3]
[349610964,1737327045284,-500.0,0.00023972,3]
[349610965,1737327045294,-3062.46,0.00023972,3]
[349610966,1737327045304,-953.42,0.00023972,3]
[349610967,1737327045314,-691.76,0.00023972,3]
[349610968,1737327045324,-2757.66,0.00023972,3]
[349610969,1737327045334,-5636.7,0.00024,30]
[349610970,1737327045343,-7438.69753278,0.00024,7]
[349610971,1737327045353,-2040.2832518,0.00024072,3]
[349610972,1737327045363,-431.11727675,0.00024099,2]
[349610973,1737327045372,-2000.0,0.000241,2]
[349610974,1737327045381,-300.0,0.000241,11]
[349610975,1737327045391,-153.09,0.000241,31]
[349610976,1737327045401,-153.09,0.000241,31]
[349610977,1737327045410,-153.09,0.000241,31]
[349610978,1737327045420,-153.09,0.000241,31]
[349610979,1737327045430,-153.09,0.000241,31]
[349610980,1737327045439,-153.09,0.000241,31]
[349610981,1737327045449,-153.09,0.000241,31]
[349610982,1737327045459,-151.0,0.000241,7]
[349610983,1737327045475,-193.817208,0.000241,7]
[349610984,1737327045486,-151.0,0.000241,7]
[349610985,1737327045495,-151.0,0.000241,7]
[349610986,1737327045509,-151.0,0.000241,7]
[349610987,1737327045519,-151.0,0.000241,7]
[349610988,1737327045528,-151.0,0.000241,7]
[349610989,1737327045537,-662.111542,0.000241,7]
[349610990,1737327045550,-151.0,0.000241,7]
[349610991,1737327045559,-448.453206,0.000241,7]
[349610992,1737327045569,-662.111542,0.000241,7]
[349610993,1737327045579,-573.187483,0.000241,7]
[349610994,1737327045589,-448.453206,0.000241,7]
[349610995,1737327045600,-573.187483,0.000241,7]
[349610996,1737327045610,-151.0,0.000241,7]
[349610997,1737327045620,-151.0,0.000241,7]
[349610998,1737327045630,-151.0,0.000241,7]
[349610999,1737327045639,-230.692342,0.00024109,7]
[349611000,1737327045648,-270.253165,0.00024109,7]
[349611001,1737327045658,-151.0,0.00024109,7]
[349611002,1737327045667,-151.0,0.00024109,7]
[349611003,1737327045677,-151.0,0.00024109,7]
[349611004,1737327045686,-151.0,0.00024109,7]
[349611005,1737327045695,-151.0,0.00024109,7]
[349611006,1737327045704,-151.0,0.00024109,7]
[349611007,1737327045714,-151.187869,0.00024109,7]
[349611008,1737327045731,-151.0,0.00024109,7]
[349611009,1737327045743,-151.0,0.00024109,7]
[349611010,1737327045753,-151.0,0.00024109,7]
[349611011,1737327045762,-151.425191,0.00024109,7]
[349611012,1737327045773,-151.0,0.00024109,7]
[349611013,1737327045783,-151.0,0.00024109,7]
[349611014,1737327045793,-151.0,0.00024109,7]
[349611015,1737327045804,-151.0,0.00024109,7]
[349611016,1737327045814,-151.0,0.00024109,7]
[349611017,1737327045824,-220.198333,0.00024109,7]
[349611018,1737327045833,-151.0,0.00024109,7]
[349611019,1737327045842,-220.198333,0.00024109,7]
[349611020,1737327045852,-151.0,0.00024109,7]
[349611021,1737327045861,-151.0,0.00024109,7]
[349611022,1737327045871,-577.01,0.00024109,2]
[349611023,1737327045881,-151.0,0.00024109,7]
[349611024,1737327045891,-151.0,0.00024109,7]
[349611025,1737327045901,-151.0,0.00024109,7]
[349611026,1737327045910,-693.571163,0.00024109,7]
[349611027,1737327045920,-693.571163,0.00024109,7]
[349611028,1737327045929,-500.0,0.00024109,3]
[349611029,1737327045938,-151.0,0.00024109,7]
[349611031,1737327045948,-3432.96953373,0.00024109,3]
[349611033,1737327045962,-612.158,0.00024109,3]
[349611059,1737327046144,-1008.68246627,0.00024109,3]
[349611060,1737327046154,-1851.13,0.00024109,3]
[349611063,1737327046164,-639.33,0.00024109,3]
[349611065,1737327046173,-961.42,0.00024109,3]
[349611067,1737327046183,-663.9,0.00024109,3]
[349611069,1737327046192,-500.0,0.00024109,3]
[349611071,1737327046202,-6979.15,0.00024109,3]
[349611073,1737327046211,-3280.79,0.00024109,3]
[349611075,1737327046223,-191.576322,0.00024109,7]
[349611077,1737327046232,-191.576322,0.00024109,7]
[349611079,1737327046241,-916.81,0.00024109,3]
[349611081,1737327046250,-162.722344,0.00024109,7]
[349611083,1737327046259,-858.63,0.00024109,3]
[349611085,1737327046268,-162.722344,0.00024109,7]
[349611087,1737327046277,-1470.33,0.00024109,3]
[349611088,1737327046286,-165.8,0.00024109,3]
[349611089,1737327046296,-3062.46,0.00024109,3]
[349611091,1737327046306,-953.42,0.00024109,3]
[349611093,1737327046316,-691.76,0.00024109,3]
[349611095,1737327046325,-2757.66,0.00024109,3]
[349611097,1737327046335,-500.0,0.00024173,2]
[349611098,1737327046344,-500.0,0.00024173,2]
[349611100,1737327046354,-500.0,0.00024173,2]
[349611102,1737327046364,-500.0,0.00024173,2]
[349611104,1737327046373,-500.0,0.00024173,2]
[349611106,1737327046384,-500.0,0.00024173,2]
[349611107,1737327046394,-500.0,0.00024173,2]
[349611108,1737327046404,-500.0,0.00024173,2]
[349611109,1737327046414,-500.0,0.00024173,2]
[349611110,1737327046423,-500.75776866,0.00024173,2]
[349611111,1737327046433,-500.0,0.00024173,2]
[349611112,1737327046443,-420.64988641,0.00024173,2]
[349611113,1737327046453,-2040.2832518,0.00024176,3]
[349611114,1737327046462,-376.89413099,0.00024191,2]
[349611115,1737327046476,-154.0848427,0.00024192,2]
[349611116,1737327046486,-154.0848427,0.00024192,2]
[349611118,1737327046495,-153.0,0.00024192,2]
[349611119,1737327046506,-153.0,0.00024192,2]
[349611121,1737327046516,-353.6953314,0.00024192,2]
[349611123,1737327046527,-353.6953314,0.00024192,2]
[349611125,1737327046536,-353.6953314,0.00024192,2]
[349611127,1737327046546,-353.6953314,0.00024192,2]
[349611128,1737327046556,-353.6953314,0.00024192,2]
[349611129,1737327046565,-717.9084918,0.00024192,2]
[349611130,1737327046574,-151.0,0.00024192,7]
[349611131,1737327046584,-151.0,0.00024196,7]
[349611132,1737327046596,-151.0,0.00024196,7]
[349611134,1737327046605,-151.0,0.00024196,7]
[349611136,1737327046616,-151.0,0.00024196,7]
[349611138,1737327046626,-158.903233,0.00024196,7]
[349611140,1737327046635,-151.0,0.00024196,7]
[349611142,1737327046645,-151.0,0.00024196,7]
[349611144,1737327046654,-151.0,0.00024198,7]
[349611146,1737327046662,-151.0,0.00024198,7]
[349611148,1737327046672,-142675.41476847,0.00024199,61]
[349611150,1737327046686,-1475.0,0.00024199,61]
[349611155,1737327046787,-500.0,0.00021917,3]
[349611157,1737327046797,-595.87,0.00021917,3]
[349611159,1737327046806,-595.87,0.00022054,3]
[349611161,1737327046815,-595.87,0.00022191,3]
[349611162,1737327046825,-595.87,0.00022328,3]
[349611164,1737327046835,-595.87,0.00022465,3]
[349611181,1737327046921,-357.67812505,0.00022602,3]
[349611186,1737327046940,-238.19187495,0.00022602,3]
[349611188,1737327046950,-595.87,0.00022739,3]
[349611190,1737327046959,-595.87,0.00022876,3]
[349611192,1737327046972,-595.87,0.00023013,3]
[349611195,1737327046982,-1000.0,0.00023932,2]
[349611197,1737327046993,-189838.03076075,0.00024199,61]
[349611199,1737327047005,-260.04143769,0.00024199,61]
[349611201,1737327047018,-1591.60913886,0.00024199,61]
[349611208,1737327047087,-500.0,0.00021917,3]
[349611209,1737327047097,-500.0,0.00021917,3]
[349611211,1737327047107,-500.0,0.00021917,3]
[349611213,1737327047118,-349.02,0.00021917,3]
[349611214,1737327047128,-500.0,0.00021917,3]
[349611215,1737327047137,-595.87,0.0002315,3]
[349611216,1737327047147,-353.6953314,0.00023233,2]
[349611217,1737327047156,-595.87,0.00023287,3]
[349611218,1737327047166,-154.0848427,0.0002337,2]
[349611219,1737327047175,-215.1283215,0.0002337,2]
[349611220,1737327047185,-595.87,0.00023424,3]
[349611221,1737327047195,-595.87,0.00023561,3]
[349611222,1737327047204,-595.87,0.00023698,3]
[349611223,1737327047213,-71249.43659049,0.00024199,61]
[349611224,1737327047228,-520.07163254,0.00024199,2]
[349611225,1737327047238,-160179.2467793,0.00024199,2]
[349611226,1737327047247,-38605.06431815,0.00024199,5]
[349611227,1737327047257,-150.0,0.00024199,2]
[349611228,1737327047266,-127215.87765933,0.00024199,61]
[349611229,1737327047280,-357.90996842,0.00024199,61]
[349611230,1737327047292,-14444.22845,0.00024199,61]
[349611231,1737327047303,-1369.26746356,0.00024199,61]
[349611232,1737327047314,-60365.3068801,0.00024199,61]
[349611233,1737327047419,-500.0,0.00021917,3]
[349611234,1737327047428,-438.68859989,0.00021917,3]
[349611235,1737327047438,-500.0,0.00021917,3]
[349611236,1737327047447,-500.0,0.00022054,3]
[349611237,1737327047456,-500.0,0.00022054,3]
[349611238,1737327047465,-500.0,0.00022191,3]
[349611239,1737327047480,-500.0,0.00022328,3]
[349611240,1737327047489,-151.0,0.00023013,7]
[349611241,1737327047498,-595.87,0.00023835,3]
[349611242,1737327047511,-151.0,0.00023835,7]
[349611243,1737327047521,-595.87,0.00023972,3]
[349611244,1737327047530,-595.87,0.00024109,3]
[349611245,1737327047540,-495579.56763929,0.00024199,61]
[349611246,1737327047553,-590.000008,0.00024199,61]
[349611247,1737327047568,-2754.59349667,0.00024199,61]
[349611248,1737327047581,-20391.0802,0.00024199,61]
[349611249,1737327047600,-500.0,0.00022465,3]
[349611250,1737327047610,-21036.001155,0.00024199,61]
[349611251,1737327047623,-53432.00000708,0.00024199,61]
[349611252,1737327047634,-13254.50000001,0.00024199,61]
[349611255,1737327143301,161.838324,0.00013973,2]
[349611267,1737327997187,451.62877391,0.000189,2]
[349611272,1737328024845,161.894481,0.00013973,2]
[349611274,1737328080260,2187.24012524,0.00023626,120]
[349611526,1737328237819,-599.40669463,0.00021419,2]
[349611528,1737328237829,-3803.0,0.00021748,2]
[349611530,1737328237839,-874.82910716,0.000219,3]
[349611532,1737328237848,-200.95,0.00021907,2]
[349611534,1737328237858,-922.76078149,0.00021916,2]
[349611728,1737328239758,-75.84117577,0.00021916,2]
[349611730,1737328239768,-235.252,0.00021916,2]
[349611732,1737328239777,-500.0,0.00021916,7]
[349611734,1737328239790,-300.0,0.00021916,2]
[349611736,1737328239799,-500.0,0.00021917,3]
[349611738,1737328239808,-500.0,0.00021917,3]
[349611740,1737328239817,-500.0,0.00021917,3]
[349611742,1737328239827,-500.0,0.00021917,3]
[349611743,1737328239835,-179.49069095,0.00021917,3]
[349611745,1737328239845,-500.0,0.00021917,3]
[349611747,1737328239855,-500.0,0.00021917,3]
[349611750,1737328239866,-500.0,0.00021917,3]
[349611751,1737328239877,-241.23389728,0.00021917,3]
[349612082,1737328242890,-258.76610272,0.00021917,3]
[349612085,1737328242902,-500.0,0.00021917,3]
[349612088,1737328242914,-400.68589728,0.00021917,3]
[349612479,1737328246492,-500.0,0.00021698,14]
[349612481,1737328246502,-99.31410272,0.00021917,3]
[349612483,1737328246511,-500.0,0.00021917,3]
[349612484,1737328246521,-500.0,0.00021917,3]
[349612487,1737328246530,-190.66988817,0.00021917,3]
[349612489,1737328246543,-311.81661985,0.00021917,3]
[349613931,1737328270905,5915.2281553,0.00023626,120]
[349613932,1737328321955,2142.0,0.0002,3]
[349613933,1737328322272,1708.85907593,0.0002,3]
[349613934,1737328322306,431.14092407,0.0002,3]
[349613935,1737328322580,2140.0,0.0002,3]
[349613936,1737328322872,2140.0,0.0002,3]
[349613937,1737328323179,2140.0,0.0002,3]
[349613938,1737328323472,2140.0,0.0002,3]
[349613939,1737328325255,1008.85907593,0.0002,3]
[349613940,1737328325288,2402.14092407,0.0002,3]
[349613941,1737328325566,1705.0,0.0002,3]
[349613942,1737328326316,1705.0,0.0002,3]
[349613943,1737328326660,1705.0,0.0002,3]
[349613944,1737328326961,1705.0,0.0002,3]
[349613945,1737328327904,777.85907593,0.0002,2]
[349613946,1737328334315,-222.14092407,0.0002,2]
[349613947,1737328350729,888.5,0.0002,2]
[349613948,1737328369101,1000.0,0.0002,10]
[349613949,1737328437463,2074.38189977,0.0002,2]
[349613950,1737328462187,199.65,0.0002,2]
[349613951,1737328830016,542.39661135,0.0002,2]
[349613952,1737328939417,623.76711131,0.0002,2]
[349613953,1737328947184,231.39393079,0.0002,2]
[349613955,1737328998481,309.0,0.0002025,30]
[349614008,1737329169799,166.244578,0.00013973,2]
[349614010,1737329202752,702.20591639,0.000189,2]
[349614011,1737329230380,3349.31902832,0.0002,2]
[349614015,1737329277402,6778.68,0.000167,2]
[349614023,1737329338610,501.0,0.00024,120]
[349614024,1737329356502,331.4,0.00024,120]
[349614028,1737329394072,4448.0,0.0002102,14]
[349614104,1737329432338,-252.225,0.000176,2]